Workbook

Sheet 12 Burden Hours Collection
A1: USDA
A2: RURAL UTILITIES SERVICE
A3: RURAL DECENTRALIZED WATER SYSTEMS
A4: INFORMATION COLLECTION BURDEN HOURS
A5: 0572 - 0139
A6: May 2024
A8: Estimated No. of Total Respondents (Applicants) | C8: 7 | J8: Estimated No. of Total Awards (Awardees) | K8: 6
A9: Average hours per response | C9: =I10/G10 -> 4.464 | J9: Number of responses per respondent | K9: =G10/C8 -> 20.86
A10: Gray Columns have automatic formulas. DO NOT input numbers in these columns. | F10: TOTAL | G10: =SUM(G15:G40) -> 146 | I10: =SUM(I15:I40) -> 652 | K10: =SUM(K15:K40) -> $34,963
A11: (A) | B11: (B) | C11: (C) | D11: (D) | E11: (E) | F11: (F) | G11: (G) | H11: (H) | I11: (I) | J11: (J) | K11: (K)
A12: Regulation Reference | B12: Title | C12: Form No. (If Any) | D12: % of Respondents Line Item is Applicable To | E12: Estimated # of Respondents | F12: Reports Filed Annually | G12: Total Responses (E) x (F) | H12: Estimated # of Hours Per Response | I12: Estimated Total Hours (G) x (H) | J12: Prof. Wage Rate | K12: Total Cost (I) x (J)
B13: APPLICATION
B15: SAM Registration | C15: SAM.gov | D15: 100% | E15: 7 | F15: 1 | G15: =E15*F15 -> 7 | H15: 2.00 | I15: =IF((H15*G15)="","",(H15*G15)) -> 14 | J15: ='12 Est Prof Wage Rate'!$G$37 -> $53.64 | K15: =IF((J15*I15)="","",(J15*I15)) -> $751
A16: 1776.2 and RD Inst. 1900-D | B16: Identify Employee Relationship | C16: Written | D16: 100% | E16: =$C$8*D16 -> 7 | F16: 1 | G16: =E16*F16 -> 7 | H16: 0.25 | I16: =IF((H16*G16)="","",(H16*G16)) -> 2 | J16: ='12 Est Prof Wage Rate'!$G$37 -> $53.64 | K16: =IF((J16*I16)="","",(J16*I16)) -> $94
A17: 1776.5 | B17: Organizational Documents-Evidence of Legal Existence and Authority | C17: Written | D17: 100% | E17: 7 | F17: 1 | G17: 7 | H17: 0.25 | I17: 2 | J17: ='12 Est Prof Wage Rate'!$G$37 -> $53.64 | K17: $94
A18: 1776.5 | B18: List of Directors and Officers | C18: Written | D18: 100% | E18: 7 | F18: 1 | G18: 7 | H18: 0.25 | I18: 2 | J18: ='12 Est Prof Wage Rate'!$G$37 -> $53.64 | K18: $94
A19: 1776.5 | B19: Evidence of Tax Exempt Status | C19: Written | D19: 100% | E19: 7 | F19: 1 | G19: 7 | H19: 0.25 | I19: 2 | J19: ='12 Est Prof Wage Rate'!$G$37 -> $53.64 | K19: $94
A20: 1776.7 (b) | B20: Work Plan (Project Proposal, Work Plan, and Budget Justification) | C20: Written | D20: 100% | E20: 7 | F20: 1 | G20: 7 | H20: 60.00 | I20: 420 | J20: ='12 Est Prof Wage Rate'!$G$37 -> $53.64 | K20: $22,529
A21: 1776.7(c) | B21: Statement of Experience | C21: Written | D21: 100% | E21: 7 | F21: 1 | G21: 7 | H21: 4.00 | I21: 28 | J21: ='12 Est Prof Wage Rate'!$G$37 -> $53.64 | K21: $1,502
A22: 1776.9 (d) (1) | B22: Pro-forma Balance Sheet | C22: Written | D22: 100% | E22: 7 | F22: 1 | G22: 7 | H22: 4.00 | I22: 28 | J22: ='12 Est Prof Wage Rate'!$G$37 -> $53.64 | K22: $1,502
A23: 1776.7 (d) (2) | B23: Prior year Audit / Financial Statement | C23: Written | D23: 100% | E23: =$C$8*D23 -> 7 | F23: 1 | G23: =E23*F23 -> 7 | H23: 0.25 | I23: 2 | J23: ='12 Est Prof Wage Rate'!$G$37 -> $53.64 | K23: $94
A24: 1776.7 (d) (3) | B24: Pro-forma Income Statement and Cash Flow | C24: Written | D24: 100% | E24: 7 | F24: 1 | G24: 7 | H24: 4.00 | I24: 28 | J24: ='12 Est Prof Wage Rate'!$G$37 -> $53.64 | K24: $1,502
E25: 0 | G25: 0 | I25: 0 | J25: ='12 Est Prof Wage Rate'!$G$37 -> $53.64 | K25: $0
E26: =D26*$C$8 -> 0 | G26: =E26*F26 -> 0 | I26: 0 | J26: ='12 Est Prof Wage Rate'!$G$37 -> $53.64 | K26: $0
B27: AWARD CLOSING, SERVICING, AND REPORTING
B29: SAM Maintenance | C29: SAM.gov | D29: 100% | E29: =D29*$K$8 -> 6 | F29: 1 | G29: 6 | H29: 1.00 | I29: =IF((H29*G29)="","",(H29*G29)) -> 6 | J29: ='12 Est Prof Wage Rate'!$G$37 -> $53.64 | K29: =IF((J29*I29)="","",(J29*I29)) -> $322
B30: Request for Obligation of Funds | C30: 1940-1 | D30: 100% | E30: 6 | F30: 1 | G30: 6 | H30: 0.25 | I30: 2 | J30: $53.64 | K30: $80
A31: 1776.2, 3019.26 and 3052 | B31: Annual Audit / Financial Statement | C31: Written | D31: 100% | E31: =D31*$K$8 -> 6 | F31: 1 | G31: 6 | H31: 0.25 | I31: 2 | J31: ='12 Est Prof Wage Rate'!$G$37 -> $53.64 | K31: $80
A32: 1776.2 and 3019.51 | B32: Project Performance Report | C32: Written
B33: Initial | D33: 100% | E33: 6 | F33: 4 | G33: 24 | H33: 2.00 | I33: 48 | J33: ='12 Est Prof Wage Rate'!$G$37 -> $53.64 | K33: $2,575
B34: Extension | D34: 100% | E34: 6 | F34: 4 | G34: 24 | H34: 2.00 | I34: 48 | J34: ='12 Est Prof Wage Rate'!$G$37 -> $53.64 | K34: $2,575
A35: 1776.2 and 3019.25 | B35: Request written approval of workplan changes | C35: Written | D35: 67% | E35: 4 | F35: 1 | G35: 4 | H35: 2.00 | I35: 8 | J35: ='12 Est Prof Wage Rate'!$G$37 -> $53.64 | K35: $431
A36: 1776.1 | B36: Grant Agreement | C36: Written | D36: 100% | E36: 6 | F36: 1 | G36: 6 | H36: 2.00 | I36: 12 | J36: ='12 Est Prof Wage Rate'!$G$37 -> $53.64 | K36: $644
E37: 0 | G37: 0 | I37: 0 | J37: ='12 Est Prof Wage Rate'!$G$37 -> $53.64 | K37: $0
E38: 0 | G38: 0 | I38: 0 | J38: ='12 Est Prof Wage Rate'!$G$37 -> $53.64 | K38: $0
E39: 0 | G39: 0 | I39: 0 | J39: ='12 Est Prof Wage Rate'!$G$37 -> $53.64 | K39: $0
E40: 0 | G40: 0 | I40: 0 | J40: ='12 Est Prof Wage Rate'!$G$37 -> $53.64 | K40: $0

Sheet 12 Not Inc in Burden Hours
A1: ='12 Burden Hours Collection'!A1 -> USDA
A2: ='12 Burden Hours Collection'!A2 -> RURAL UTILITIES SERVICE
A3: ='12 Burden Hours Collection'!A3 -> RURAL DECENTRALIZED WATER SYSTEMS
A4: ='12 Burden Hours Collection'!A4 -> INFORMATION COLLECTION BURDEN HOURS
A5: ='12 Burden Hours Collection'!A5 -> 0572 - 0139
A6: ='12 Burden Hours Collection'!A6 -> May 2024
A8: Estimated No. of Total Respondents (Applicants) | C8: ='12 Burden Hours Collection'!C8 -> 7 | J8: Estimated No. of Total Awards (Awardees) | K8: ='12 Burden Hours Collection'!K8 -> 6
A9: Average hours per response | C9: =I10/G10 -> 0.764 | J9: Number of responses per respondent | K9: =G10/C8 -> 9.71
A10: Gray Columns have automatic formulas. DO NOT input numbers in these columns. | F10: TOTAL | G10: =SUM(G14:G20) -> 68 | I10: =SUM(I14:I20) -> 52 | K10: =SUM(K14:K20) -> $2,785
A11: (A) | B11: (B) | C11: (C) | D11: (D) | E11: (E) | F11: (F) | G11: (G) | H11: (H) | I11: (I) | J11: (J) | K11: (K)
A12: Regulation Reference | B12: Title | C12: Form No. (If Any) | D12: % of Respondents Line Item is Applicable To | E12: Estimated # of Respondents | F12: Reports Filed Annually | G12: Total Responses (E) x (F) | H12: Estimated # of Hours Per Response | I12: Estimated Total Hours (G) x (H) | J12: Prof. Wage Rate | K12: Total Cost (I) x (J)
A13: APPLICATION
A15: 1776.2 | B15: Equal Opportunity Agreement (Cleared under 0575-0201) | C15: RD 400-1 | D15: 100% | E15: =D15*$C$8 -> 7 | F15: 1 | G15: =E15*F15 -> 7 | H15: 0.167 | I15: =IF((H15*G15)="","",(H15*G15)) -> 1 | J15: ='12 Est Prof Wage Rate'!$G$37 -> $53.64 | K15: =IF((J15*I15)="","",(J15*I15)) -> $63
A16: 1776.2 | B16: Assurance Agreement (Cleared under 0575-0201) | C16: RD 400-4 | D16: 100% | E16: =D16*$C$8 -> 7 | F16: 1 | G16: 7 | H16: 0.25 | I16: 2 | J16: ='12 Est Prof Wage Rate'!$G$37 -> $53.64 | K16: $94
A17: 1776.2 and 3018.11 | B17: Disclosure of Lobbying Activities-(Cleared under 4040-0013) | C17: SF-LLL | D17: 100% | E17: =D17*$K$8 -> 6 | F17: 1 | G17: 6 | H17: 0.167 | I17: 1 | J17: ='12 Est Prof Wage Rate'!$G$37 -> $53.64 | K17: $54
A18: 1776.2 and 3019.22 | B18: Request for Advance or Reimbursement - (Cleared under 4040-0012) | C18: SF 270
B19: Initial | D19: 100% | E19: =D19*$K$8 -> 6 | F19: 4 | G19: 24 | H19: 1.00 | I19: 24 | J19: ='12 Est Prof Wage Rate'!$G$37 -> $53.64 | K19: $1,287
B20: Extension | D20: 100% | E20: =D20*$K$8 -> 6 | F20: 4 | G20: 24 | H20: 1.00 | I20: 24 | J20: ='12 Est Prof Wage Rate'!$G$37 -> $53.64 | K20: $1,287
A21: 1776.7 (a)(1) | B21: Application for Federal Assistance (Cleared under 4040-0004) | C21: SF-424
B22: Initial | D22: 100% | E22: =D22*$K$8 -> 6 | F22: 1 | G22: =E22*F22 -> 6 | H22: 1.00 | I22: =IF((H22*G22)="","",(H22*G22)) -> 6 | J22: ='12 Est Prof Wage Rate'!$G$37 -> $53.64 | K22: =IF((J22*I22)="","",(J22*I22)) -> $322
B23: Revised | D23: 0% | E23: 0 | F23: 1 | G23: 0 | H23: 1.00 | I23: 0 | J23: ='12 Est Prof Wage Rate'!$G$37 -> $53.64 | K23: $0
A24: 1776.9(a)(2) | B24: Budget Information - (Cleared under 4040-0006) | C24: SF-424A
B25: Initial | D25: 100% | E25: 6 | F25: 1 | G25: 6 | H25: 3.00 | I25: 18 | J25: ='12 Est Prof Wage Rate'!$G$37 -> $53.64 | K25: $966
B26: Revised | D26: 0% | E26: 0 | F26: 1 | G26: 0 | H26: 3.00 | I26: 0 | J26: ='12 Est Prof Wage Rate'!$G$37 -> $53.64 | K26: $0
A27: 1776.2 and 3019.52 | B27: Federal Financial Report - (Cleared under 4040-0014) | C27: SF-425
B28: Initial | D28: 100% | E28: 6 | F28: 4 | G28: 24 | H28: 1.50 | I28: 36 | J28: ='12 Est Prof Wage Rate'!$G$37 -> $53.64 | K28: $1,931
B29: Extension | D29: 100% | E29: 6 | F29: 4 | G29: 24 | H29: 1.50 | I29: 36 | J29: ='12 Est Prof Wage Rate'!$G$37 -> $53.64 | K29: $1,931

Sheet 12 Est Prof Wage Rate
A1: ='12 Burden Hours Collection'!A1 -> USDA
A2: ='12 Burden Hours Collection'!A2 -> RURAL UTILITIES SERVICE
A3: ='12 Burden Hours Collection'!A3 -> RURAL DECENTRALIZED WATER SYSTEMS
A4: ='12 Burden Hours Collection'!A4 -> INFORMATION COLLECTION BURDEN HOURS
A5: ='12 Burden Hours Collection'!A5 -> 0572 - 0139
A6: ='12 Burden Hours Collection'!A6 -> May 2024
A8: Instructions:
A9: 1. Use the U.S. Bureau of Labor Statistics Occupational Emplyment and Wage Statistics Link below to complete Columns A, B, C for the table below.
A10: a. Click the link: | B10: https://www.bls.gov/oes/tables.htm
A11: b. Under the latest Month Year (May 2022) click Occupation Profiles
A12: c. Use the Occupational Titles to choose which professions (A) need to be added to the table below. You can more than one occupation or just one.
A13: d. The code in front of each Occupational Title is the Occupation Code that goes in (B) for the table below.
A14: e. When you click on each Occupational Titles, choose the Mean Hourly Wage to input in (C) for the table below.
A15: 2. Use the U.S. Bureau of Labor Economic News Release, Employer Costs for Employee Compension to complete Column D for the table below.
A16: a. Click the link: | B16: https://www.bls.gov/news.release/ecec.toc.htm
A17: b. Choose "The PDF verison of the news release" link
A18: c. The latest (September 12, 2023) News Release for Employer Costs for Employee Compensation - Juner 2023 opens in separate tab.
A19: d. On first page, second paragraph use the benefit costs % of: | D19: 29.60%
A20: 3. For each profession fill in the % for (F). The total for the column should be 100%.
A21: a. Note that if there is only one profession then (F) would be 100%.
A23: Gray Columns have automatic formulas. DO NOT input numbers in these columns.
A24: (A) | B24: (B) | C24: (C) | D24: (D) | E24: (E) | F24: (F) | G24: (G)
A25: Profession | B25: Bureau of Labor Occupation Code 1.d | C25: Mean Wage 1.e | D25: Benefits 2 (C) * (2.d) | E25: Total Hourly Wage (C ) + (D) | F25: % Time Spent on Burden | G25: Weighted Hourly Salary (E) * (F)
A26: Business and Financial Operations Occupations | B26: 13-0000 | C26: $41.39 | D26: =IF(C26=0,"",(C26*$D$19)) -> $12.25 | E26: =IF(SUM(C26:D26)=0,"",SUM(C26:D26)) -> $53.64 | F26: 100% | G26: =IF(E26="","",(E26*F26)) -> $53.64
D27: =IF(C27=0,"",(C27*$D$19)) ->  | E27: =IF(SUM(C27:D27)=0,"",SUM(C27:D27)) ->  | G27: =IF(E27="","",(E27*F27)) -> 
D28: =IF(C28=0,"",(C28*$D$19)) ->  | E28: =IF(SUM(C28:D28)=0,"",SUM(C28:D28)) ->  | G28: =IF(E28="","",(E28*F28)) -> 
D29: =IF(C29=0,"",(C29*$D$19)) ->  | E29: =IF(SUM(C29:D29)=0,"",SUM(C29:D29)) ->  | G29: =IF(E29="","",(E29*F29)) -> 
A37: TOTAL | D37: =IF(C37=0,"",(C37*#REF!)) ->  | F37: =SUM(F26:F36) -> 100% | G37: =SUM(G26:G36) -> $53.64

Sheet 14 Annual Cost to Fed Gov Est
A1: ='12 Burden Hours Collection'!A1 -> USDA
A2: ='12 Burden Hours Collection'!A2 -> RURAL UTILITIES SERVICE
A3: ='12 Burden Hours Collection'!A3 -> RURAL DECENTRALIZED WATER SYSTEMS
A4: ='12 Burden Hours Collection'!A4 -> INFORMATION COLLECTION BURDEN HOURS
A5: ='12 Burden Hours Collection'!A5 -> 0572 - 0139
A6: ='12 Burden Hours Collection'!A6 -> May 2024
A8: OPM GS Pay Tables - Table 2023 DCB | C8: https://www.opm.gov/policy-data-oversight/pay-leave/salaries-wages/2024/general-schedule
A9: OPM SES Schedules - Table 2023-ES | C9: Executive Senior Level (opm.gov)
A10: Benefit % (OMB Memo M-08 13) | B10: https://www.whitehouse.gov/wp-content/uploads/legacy_drupal_files/omb/memoranda/2008/m08-13.pdf | K10: 36.25%
A12: Gray & Blue Columns have automatic formulas. DO NOT input numbers in these columns. | G12: Total | H12: =H14+H17+H20+H23 -> 24.00 | I12: =I14+I17+I20+I23 -> $2,101.79 | K12: =K14+K17+K20+K23+K26+K29+K32 -> $27,323.30
A13: Staff Position | B13: GS Grade | C13: GS Step | D13: GS Salary | E13: Hourly Rate Calc | F13: Benefits Calc | G13: Total Salary Rate Calc | H13: Hours Required | I13: Cost Subtotals | J13: # of Responses | K13: Total Costs
A14: Application | H14: =SUM(H15:H16) -> 12.00 | I14: =SUM(I15:I16) -> $1,051 | J14: 7 | K14: =J14*I14 -> $7,356.27
A15: Community Program Specialist | B15: 13 | C15: 5 | D15: $133,692 | E15: =(D15/52)/40 -> $64.28 | F15: =E15*$K$10 -> $23.30 | G15: =E15+F15 -> $87.57 | H15: 12.00 | I15: =H15*G15 -> $1,050.90
E16: =(D16/52)/40 -> $0.00 | F16: =E16*$K$10 -> $0.00 | G16: =E16+F16 -> $0.00 | I16: =H16*G16 -> $0.00
A17: First Administrative Phase | H17: =SUM(H18:H19) -> 6.00 | I17: =SUM(I18:I19) -> $525 | J17: 7 | K17: =J17*I17 -> $3,678.14
A18: Community Program Specialist | B18: 13 | C18: 5 | D18: $133,692 | E18: =(D18/52)/40 -> $64.28 | F18: =E18*$K$10 -> $23.30 | G18: =E18+F18 -> $87.57 | H18: 6.00 | I18: $525.45
E19: $0.00 | F19: $0.00 | G19: $0.00 | I19: $0.00
A20: Second Administrative Phase | H20: =SUM(H21:H22) -> 3.00 | I20: =SUM(I21:I22) -> $263 | J20: 6 | K20: =J20*I20 -> $1,576.34
A21: Community Program Specialist | B21: 13 | C21: 5 | D21: $133,692 | E21: =(D21/52)/40 -> $64.28 | F21: =E21*$K$10 -> $23.30 | G21: =E21+F21 -> $87.57 | H21: 3.00 | I21: $262.72
E22: =(D22/52)/40 -> $0.00 | F22: $0.00 | G22: $0.00 | I22: $0.00
A23: Servicing per Quarter (initial) | H23: =SUM(H24:H24) -> 3.00 | I23: =SUM(I24:I24) -> $263 | J23: 24 | K23: =J23*I23 -> $6,305.38
A24: Community Program Specialist | B24: 13 | C24: 5 | D24: $133,692 | E24: =(D24/52)/40 -> $64.28 | F24: =E24*$K$10 -> $23.30 | G24: =E24+F24 -> $87.57 | H24: 3.00 | I24: $262.72
A26: Servicing per Quarter (Extended) | H26: =SUM(H27:H27) -> 3.00 | I26: =SUM(I27:I27) -> $263 | J26: 16 | K26: =J26*I26 -> $4,203.59 | M26: 4 qrts x 4 borrowers
A27: Community Program Specialist | B27: 13 | C27: 5 | D27: $133,692 | E27: =(D27/52)/40 -> $64.28 | F27: =E27*$K$10 -> $23.30 | G27: =E27+F27 -> $87.57 | H27: 3.00 | I27: =H27*G27 -> $262.72
A29: End of Grant period | H29: =SUM(H30:H30) -> 6.00 | I29: =SUM(I30:I30) -> $525 | J29: 6 | K29: =J29*I29 -> $3,152.69
A30: Community Program Specialist | B30: 13 | C30: 5 | D30: $133,692 | E30: =(D30/52)/40 -> $64.28 | F30: =E30*$K$10 -> $23.30 | G30: =E30+F30 -> $87.57 | H30: 6.00 | I30: =H30*G30 -> $525.45
A32: Closeout | H32: =SUM(H33:H33) -> 2.00 | I32: =SUM(I33:I33) -> $175 | J32: 6 | K32: =J32*I32 -> $1,050.90
A33: Community Program Specialist | B33: 13 | C33: 5 | D33: $133,692 | E33: =(D33/52)/40 -> $64.28 | F33: =E33*$K$10 -> $23.30 | G33: =E33+F33 -> $87.57 | H33: 2.00 | I33: =H33*G33 -> $175.15
